fUSD/lending_fUSD_20260613
["ID","MTS","AMOUNT","RATE_DAILY","PERIOD"]
[424948610,1781325044000,-294.21164794,0.00014111,2]
[424948614,1781325044000,-150.0,0.00014237,2]
[424948615,1781325044000,-150.0,0.00014237,2]
[424948613,1781325044000,-150.0,0.00014237,2]
[424948617,1781325044000,-400.344698,0.00014358,7]
[424948619,1781325044000,-162.0,0.0001436,2]
[424948618,1781325044000,-6076.0,0.00014359,2]
[424948620,1781325044000,-150.0,0.00014362,2]
[424948635,1781325044000,-838.74,0.00014599,2]
[424948616,1781325044000,-170.37,0.00014275,2]
[424948611,1781325044000,-150.0,0.00014112,2]
[424948623,1781325044000,-152.0,0.00014465,7]
[424948625,1781325044000,-150.0,0.00014487,2]
[424948624,1781325044000,-150.0,0.00014487,2]
[424948621,1781325044000,-152.0,0.00014413,7]
[424948630,1781325044000,-573.27,0.00014589,2]
[424948628,1781325044000,-482.23,0.00014575,2]
[424948626,1781325044000,-150.0,0.00014487,2]
[424948627,1781325044000,-350.0,0.00014544,2]
[424948629,1781325044000,-396.13,0.00014589,2]
[424948631,1781325044000,-713.66651204,0.0001459,2]
[424948632,1781325044000,-838.74,0.00014599,2]
[424948622,1781325044000,-1613.0535,0.00014464,2]
[424948661,1781325045000,-211.83062855,0.0001475,2]
[424948660,1781325045000,-150.0,0.00014737,2]
[424948662,1781325045000,-230.35926378,0.00014776,2]
[424948664,1781325045000,-151.0,0.00014819,2]
[424948663,1781325045000,-300.0,0.000148,5]
[424948665,1781325045000,-838.74,0.00014821,2]
[424948666,1781325045000,-831.2865767,0.00014822,2]
[424948667,1781325045000,-49317.83535336,0.00014822,2]
[424948693,1781325047000,-2621.53255702,0.00011359,2]
[424948694,1781325047000,-320.7375,0.00011359,2]
[424948692,1781325047000,-908.386245,0.00011394,2]
[424948697,1781325140000,-371.82340478,7.062e-05,2]
[424948698,1781325195000,-187.77515228,7.062e-05,2]
[424948699,1781325248000,-150.0,7.061e-05,2]
[424948700,1781325301000,-300.0,7.061e-05,2]
[424948701,1781325301000,-500.0,7.061e-05,2]
[424948702,1781325301000,-441.69652762,7.061e-05,2]
[424948703,1781325301000,-604.03996671,7.061e-05,2]
[424948706,1781325301000,-162.4652011,7.061e-05,2]
[424948710,1781325301000,-604.03996671,7.061e-05,2]
[424948705,1781325301000,-500.0,7.061e-05,2]
[424948707,1781325301000,-604.03996671,7.061e-05,2]
[424948709,1781325301000,-604.03996671,7.061e-05,2]
[424948708,1781325301000,-189.2034617,7.061e-05,2]
[424948711,1781325301000,-604.03996671,7.061e-05,2]
[424948704,1781325301000,-323.04630176,7.061e-05,2]
[424948726,1781325302000,-604.03996671,7.061e-05,2]
[424948725,1781325302000,-604.03996671,7.061e-05,2]
[424948724,1781325302000,-604.03996671,7.061e-05,2]
[424948723,1781325302000,-604.03996671,7.061e-05,2]
[424948722,1781325302000,-604.03996671,7.061e-05,2]
[424948721,1781325302000,-604.03996671,7.061e-05,2]
[424948720,1781325302000,-604.03996671,7.061e-05,2]
[424948716,1781325302000,-604.03996671,7.061e-05,2]
[424948718,1781325302000,-500.0,7.061e-05,2]
[424948717,1781325302000,-604.03996671,7.061e-05,2]
[424948715,1781325302000,-604.03996671,7.061e-05,2]
[424948713,1781325302000,-604.03996671,7.061e-05,2]
[424948712,1781325302000,-604.03996671,7.061e-05,2]
[424948714,1781325302000,-604.03996671,7.061e-05,2]
[424948728,1781325302000,-604.03996671,7.061e-05,2]
[424948719,1781325302000,-604.03996671,7.061e-05,2]
[424948727,1781325302000,-604.03996671,7.061e-05,2]
[424948729,1781325302000,-604.03996671,7.061e-05,2]
[424948731,1781325302000,-604.03996671,7.061e-05,2]
[424948730,1781325302000,-604.03996671,7.061e-05,2]
[424948746,1781325302000,-604.03996671,7.061e-05,2]
[424948747,1781325302000,-604.03996671,7.061e-05,2]
[424948745,1781325302000,-604.03996671,7.061e-05,2]
[424948744,1781325302000,-604.03996671,7.061e-05,2]
[424948742,1781325302000,-604.03996671,7.061e-05,2]
[424948740,1781325302000,-604.03996671,7.061e-05,2]
[424948741,1781325302000,-604.03996671,7.061e-05,2]
[424948743,1781325302000,-604.03996671,7.061e-05,2]
[424948738,1781325302000,-604.03996671,7.061e-05,2]
[424948737,1781325302000,-604.03996671,7.061e-05,2]
[424948736,1781325302000,-604.03996671,7.061e-05,2]
[424948735,1781325302000,-604.03996671,7.061e-05,2]
[424948734,1781325302000,-604.03996671,7.061e-05,2]
[424948733,1781325302000,-604.03996671,7.061e-05,2]
[424948732,1781325302000,-604.03996671,7.061e-05,2]
[424948748,1781325302000,-604.03996671,7.061e-05,2]
[424948739,1781325302000,-604.03996671,7.061e-05,2]
[424948759,1781325303000,-604.03996671,7.061e-05,2]
[424948764,1781325303000,-912.56287632,7.061e-05,2]
[424948762,1781325303000,-604.03996671,7.061e-05,2]
[424948763,1781325303000,-912.56287632,7.061e-05,2]
[424948761,1781325303000,-604.03996671,7.061e-05,2]
[424948760,1781325303000,-604.03996671,7.061e-05,2]
[424948758,1781325303000,-604.03996671,7.061e-05,2]
[424948749,1781325303000,-604.03996671,7.061e-05,2]
[424948756,1781325303000,-604.03996671,7.061e-05,2]
[424948755,1781325303000,-604.03996671,7.061e-05,2]
[424948754,1781325303000,-604.03996671,7.061e-05,2]
[424948753,1781325303000,-604.03996671,7.061e-05,2]
[424948752,1781325303000,-604.03996671,7.061e-05,2]
[424948751,1781325303000,-604.03996671,7.061e-05,2]
[424948750,1781325303000,-604.03996671,7.061e-05,2]
[424948765,1781325303000,-912.56287632,7.061e-05,2]
[424948757,1781325303000,-604.03996671,7.061e-05,2]
[424948767,1781325303000,-912.56287632,7.061e-05,2]
[424948775,1781325303000,-912.56287632,7.061e-05,2]
[424948768,1781325303000,-912.56287632,7.061e-05,2]
[424948785,1781325303000,-912.56287632,7.061e-05,2]
[424948786,1781325303000,-912.56287632,7.061e-05,2]
[424948784,1781325303000,-912.56287632,7.061e-05,2]
[424948782,1781325303000,-912.56287632,7.061e-05,2]
[424948783,1781325303000,-912.56287632,7.061e-05,2]
[424948780,1781325303000,-912.56287632,7.061e-05,2]
[424948781,1781325303000,-912.56287632,7.061e-05,2]
[424948766,1781325303000,-912.56287632,7.061e-05,2]
[424948779,1781325303000,-912.56287632,7.061e-05,2]
[424948778,1781325303000,-912.56287632,7.061e-05,2]
[424948776,1781325303000,-912.56287632,7.061e-05,2]
[424948774,1781325303000,-912.56287632,7.061e-05,2]
[424948773,1781325303000,-912.56287632,7.061e-05,2]
[424948771,1781325303000,-912.56287632,7.061e-05,2]
[424948772,1781325303000,-912.56287632,7.061e-05,2]
[424948769,1781325303000,-912.56287632,7.061e-05,2]
[424948770,1781325303000,-912.56287632,7.061e-05,2]
[424948777,1781325303000,-912.56287632,7.061e-05,2]
[424948789,1781325304000,-912.56287635,7.061e-05,2]
[424948787,1781325304000,-912.56287632,7.061e-05,2]
[424948790,1781325304000,-912.56287635,7.061e-05,2]
[424948788,1781325304000,-912.56287632,7.061e-05,2]
[424948793,1781325304000,-216.029201,7.066e-05,2]
[424948791,1781325304000,-912.56287635,7.061e-05,2]
[424948792,1781325304000,-160.0,7.066e-05,2]
[424948794,1781325304000,300.0,7.06e-05,2]
[424948795,1781325305000,260.05601375,7.061e-05,2]
[424948796,1781325354000,-811.58554334,7.599e-05,2]
[424948797,1781325407000,-500.0,7.06e-05,2]
[424948798,1781325461000,-500.0,7.06e-05,2]
[424948799,1781325473000,200.0,8.085e-05,7]
[424948800,1781325475000,200.0,8.085e-05,7]
[424948801,1781325476000,200.0,8.085e-05,7]
[424948802,1781325477000,200.0,8.085e-05,7]
[424948803,1781325487000,-216.029201,7.062e-05,2]
[424948804,1781325487000,-130.970799,7.062e-05,2]
[424948805,1781325514000,-29.029201,7.062e-05,2]
[424948808,1781325544000,-43301.0,7.072e-05,2]
[424948807,1781325544000,-150.0,7.071e-05,2]
[424948809,1781325568000,-10104.22779121,7.072e-05,2]
[424948810,1781325592000,-1074.7051472,7.071e-05,2]
[424948811,1781325756000,-411.83296294,7.07e-05,2]
[424948814,1781325809000,-500.0,7.069e-05,2]
[424948817,1781325862000,-472.23664636,7.069e-05,2]
[424948818,1781325917000,-500.0,7.068e-05,2]
[424948820,1781325941000,-63.51233337,7.068e-05,2]
[424948819,1781325941000,-300.0,7.067e-05,2]
[424948821,1781325970000,-267.05331909,7.068e-05,2]
[424948822,1781326023000,-231.39595672,7.067e-05,2]
[424948823,1781326076000,-500.0,7.067e-05,2]
[424948824,1781326081000,200.0,7.417e-05,7]
[424948825,1781326130000,-200.0,7.046e-05,2]
[424948827,1781326157000,-150.0,7.066e-05,2]
[424948840,1781326157000,-1063.95809572,7.066e-05,2]
[424948841,1781326157000,-500.0,7.066e-05,2]
[424948839,1781326157000,-1063.95809572,7.066e-05,2]
[424948838,1781326157000,-1063.95809572,7.066e-05,2]
[424948837,1781326157000,-1063.95809572,7.066e-05,2]
[424948835,1781326157000,-1063.95809572,7.066e-05,2]
[424948836,1781326157000,-1063.95809572,7.066e-05,2]
[424948834,1781326157000,-1063.95809572,7.066e-05,2]
[424948833,1781326157000,-322.43398889,7.066e-05,2]
[424948832,1781326157000,-500.0,7.066e-05,2]
[424948830,1781326157000,-500.0,7.066e-05,2]
[424948831,1781326157000,-283.49062451,7.066e-05,2]
[424948829,1781326157000,-161.9771697,7.066e-05,2]
[424948828,1781326157000,-288.28307406,7.066e-05,2]
[424948826,1781326157000,-173.06,7.046e-05,2]
[424948844,1781326157000,-1063.95809572,7.066e-05,2]
[424948842,1781326157000,-985.00537464,7.066e-05,2]
[424948848,1781326157000,-1063.95809572,7.066e-05,2]
[424948845,1781326157000,-1063.95809572,7.066e-05,2]
[424948860,1781326157000,-1063.95809572,7.066e-05,2]
[424948861,1781326157000,-1063.95809572,7.066e-05,2]
[424948862,1781326157000,-1063.95809572,7.066e-05,2]
[424948859,1781326157000,-1063.95809572,7.066e-05,2]
[424948843,1781326157000,-78.95272108,7.066e-05,2]
[424948856,1781326157000,-1063.95809572,7.066e-05,2]
[424948854,1781326157000,-1063.95809572,7.066e-05,2]
[424948857,1781326157000,-1063.95809572,7.066e-05,2]
[424948858,1781326157000,-1063.95809572,7.066e-05,2]
[424948853,1781326157000,-1063.95809572,7.066e-05,2]
[424948850,1781326157000,-1063.95809572,7.066e-05,2]
[424948852,1781326157000,-1063.95809572,7.066e-05,2]
[424948851,1781326157000,-1063.95809572,7.066e-05,2]
[424948849,1781326157000,-1063.95809572,7.066e-05,2]
[424948846,1781326157000,-1063.95809572,7.066e-05,2]
[424948855,1781326157000,-1063.95809572,7.066e-05,2]
[424948847,1781326157000,-1063.95809572,7.066e-05,2]
[424948868,1781326158000,-1063.95809572,7.066e-05,2]
[424948869,1781326158000,-1063.95809572,7.066e-05,2]
[424948870,1781326158000,-1063.95809572,7.066e-05,2]
[424948865,1781326158000,-1063.95809572,7.066e-05,2]
[424948866,1781326158000,-1063.95809572,7.066e-05,2]
[424948864,1781326158000,-1063.95809572,7.066e-05,2]
[424948863,1781326158000,-1063.95809572,7.066e-05,2]
[424948872,1781326158000,-1063.95809572,7.066e-05,2]
[424948867,1781326158000,-1063.95809572,7.066e-05,2]
[424948871,1781326158000,-1063.95809572,7.066e-05,2]
[424948879,1781326158000,-1063.95809572,7.066e-05,2]
[424948874,1781326158000,-1063.95809572,7.066e-05,2]
[424948873,1781326158000,-1063.95809572,7.066e-05,2]
[424948883,1781326158000,-1063.95809572,7.066e-05,2]
[424948881,1781326158000,-1063.95809572,7.066e-05,2]
[424948882,1781326158000,-1063.95809572,7.066e-05,2]
[424948884,1781326158000,-80.07884775,7.066e-05,2]
[424948878,1781326158000,-1063.95809572,7.066e-05,2]
[424948877,1781326158000,-1063.95809572,7.066e-05,2]
[424948875,1781326158000,-1063.95809572,7.066e-05,2]
[424948876,1781326158000,-1063.95809572,7.066e-05,2]
[424948880,1781326158000,-1063.95809572,7.066e-05,2]
[424948886,1781326182000,-833.92955367,7.066e-05,2]
[424948885,1781326182000,-983.87924797,7.066e-05,2]
[424948904,1781326183000,-1034.16726906,7.066e-05,2]
[424948905,1781326183000,-1034.16726906,7.066e-05,2]
[424948901,1781326183000,-1063.95809572,7.066e-05,2]
[424948902,1781326183000,-1063.95809572,7.066e-05,2]
[424948899,1781326183000,-1063.95809572,7.066e-05,2]
[424948900,1781326183000,-1063.95809572,7.066e-05,2]
[424948897,1781326183000,-1063.95809572,7.066e-05,2]
[424948898,1781326183000,-1063.95809572,7.066e-05,2]
[424948894,1781326183000,-1063.95809572,7.066e-05,2]
[424948896,1781326183000,-1063.95809572,7.066e-05,2]
[424948893,1781326183000,-1063.95809572,7.066e-05,2]
[424948892,1781326183000,-1063.95809572,7.066e-05,2]
[424948891,1781326183000,-1063.95809572,7.066e-05,2]
[424948890,1781326183000,-1063.95809572,7.066e-05,2]
[424948889,1781326183000,-1063.95809572,7.066e-05,2]
[424948888,1781326183000,-1063.95809572,7.066e-05,2]
[424948887,1781326183000,-230.02854205,7.066e-05,2]
[424948895,1781326183000,-1063.95809572,7.066e-05,2]
[424948906,1781326183000,-1034.16726906,7.066e-05,2]
[424948908,1781326183000,-1034.16726906,7.066e-05,2]
[424948907,1781326183000,-1034.16726906,7.066e-05,2]
[424948924,1781326183000,-1034.16726906,7.066e-05,2]
[424948926,1781326183000,-881.44106711,7.066e-05,2]
[424948925,1781326183000,-1034.16726906,7.066e-05,2]
[424948923,1781326183000,-1034.16726906,7.066e-05,2]
[424948921,1781326183000,-1034.16726906,7.066e-05,2]
[424948922,1781326183000,-1034.16726906,7.066e-05,2]
[424948903,1781326183000,-1063.95809572,7.066e-05,2]
[424948919,1781326183000,-1034.16726906,7.066e-05,2]
[424948920,1781326183000,-1034.16726906,7.066e-05,2]
[424948915,1781326183000,-1034.16726906,7.066e-05,2]
[424948917,1781326183000,-1034.16726906,7.066e-05,2]
[424948916,1781326183000,-1034.16726906,7.066e-05,2]
[424948914,1781326183000,-1034.16726906,7.066e-05,2]
[424948913,1781326183000,-1034.16726906,7.066e-05,2]
[424948912,1781326183000,-1034.16726906,7.066e-05,2]
[424948910,1781326183000,-1034.16726906,7.066e-05,2]
[424948909,1781326183000,-1034.16726906,7.066e-05,2]
[424948918,1781326183000,-1034.16726906,7.066e-05,2]
[424948911,1781326183000,-1034.16726906,7.066e-05,2]
[424948928,1781326202000,-3254.57167043,7.072e-05,2]
[424948929,1781326202000,-3404.57167043,7.072e-05,2]
[424948927,1781326202000,-150.0,7.07e-05,2]
[424948934,1781326236000,-1548.689,7.072e-05,2]
[424948967,1781326237000,-500.0,8.219e-05,2]
[424948950,1781326237000,-9999.99,8.085e-05,2]
[424948947,1781326237000,-2707.797913,7.945e-05,2]
[424948943,1781326237000,-150.0,7.119e-05,2]
[424948945,1781326237000,-193.26486441,7.774e-05,2]
[424948946,1781326237000,-250.0,7.774e-05,2]
[424948944,1781326237000,-255.0,7.773e-05,2]
[424948942,1781326237000,-160.0,7.089e-05,2]
[424948941,1781326237000,-216.029201,7.089e-05,2]
[424948940,1781326237000,-2781.76692227,7.072e-05,2]
[424948939,1781326237000,-500.0,7.072e-05,2]
[424948938,1781326237000,-1150.0,7.072e-05,2]
[424948937,1781326237000,-1046.42972454,7.072e-05,2]
[424948935,1781326237000,-3383.42896817,7.072e-05,2]
[424948936,1781326237000,-1254.09285305,7.072e-05,2]
[424948971,1781326237000,-8611.49,8.219e-05,2]
[424948949,1781326237000,-700.89,8.085e-05,2]
[424948948,1781326237000,-2352.233831,7.945e-05,2]
[424948959,1781326237000,-3274.89432779,8.085e-05,2]
[424948952,1781326237000,-3752.27976441,8.085e-05,2]
[424948969,1781326237000,-150.0,8.219e-05,2]
[424948970,1781326237000,-150.99,8.219e-05,2]
[424948965,1781326237000,-500.0,8.219e-05,2]
[424948966,1781326237000,-500.0,8.219e-05,2]
[424948964,1781326237000,-500.0,8.219e-05,2]
[424948963,1781326237000,-500.0,8.219e-05,2]
[424948962,1781326237000,-10879.409439,8.178e-05,2]
[424948968,1781326237000,-317.00728438,8.219e-05,2]
[424948956,1781326237000,-764.92987787,8.085e-05,2]
[424948957,1781326237000,-1102.86804713,8.085e-05,2]
[424948951,1781326237000,-2136.17,8.085e-05,2]
[424948954,1781326237000,-977.0,8.085e-05,2]
[424948955,1781326237000,-1784.80487419,8.085e-05,2]
[424948953,1781326237000,-1015.79310861,8.085e-05,2]
[424948961,1781326237000,-299.99,8.085e-05,2]
[424948995,1781326238000,-7242.7509,0.00010938,2]
[424948991,1781326238000,-2000.0,0.00010064,2]
[424948994,1781326238000,-360.54,0.00010683,2]
[424948993,1781326238000,-5352.96747412,0.00010438,2]
[424948997,1781326238000,-500.0,0.00010958,3]
[424948998,1781326238000,-500.0,0.00010958,4]
[424949001,1781326238000,-500.0,0.00010958,2]
[424949000,1781326238000,-431.64286952,0.00010958,6]
[424948992,1781326238000,-3578.32986629,0.00010438,2]
[424949006,1781326238000,-166.66,0.00011068,2]
[424949003,1781326238000,-166.66,0.00010959,2]
[424949005,1781326238000,-161.88,0.0001103,2]
[424949008,1781326238000,-5215.12172216,0.00011099,2]
[424949002,1781326238000,-150.0,0.00010959,2]
[424948996,1781326238000,-500.0,0.00010958,2]
[424948990,1781326238000,-161.88,0.00010027,2]
[424948986,1781326238000,-159.71,9.778e-05,2]
[424948985,1781326238000,-302.28,9.743e-05,2]
[424948972,1781326238000,-433.0,8.55e-05,2]
[424948974,1781326238000,-428.0,9.405e-05,2]
[424948975,1781326238000,-768.61811648,9.438e-05,2]
[424948973,1781326238000,-483.16159168,8.835e-05,2]
[424948976,1781326238000,-2028.39537013,9.438e-05,2]
[424948978,1781326238000,-293.1712,9.611e-05,2]
[424948977,1781326238000,-360.54,9.496e-05,2]
[424948980,1781326238000,-153.57284253,9.67e-05,2]
[424948981,1781326238000,-153.57284253,9.67e-05,2]
[424948983,1781326238000,-923.12,9.736e-05,2]
[424948982,1781326238000,-71728.7786001,9.711e-05,2]
[424948979,1781326238000,-2500.0,9.611e-05,2]
[424948984,1781326238000,-500.0,9.743e-05,2]
[424948987,1781326238000,-357.15,9.896e-05,2]
[424949004,1781326238000,-150.0,0.00010959,2]
[424948988,1781326238000,-901.56,0.0001,2]
[424949007,1781326238000,-5215.12172222,0.00011099,2]
[424948989,1781326238000,-154.70902674,0.0001,2]
[424949009,1781326238000,-5215.12172216,0.00011099,2]
[424949030,1781326238000,-1995.41514735,0.000119,2]
[424949032,1781326238000,-5215.12172216,0.00011976,2]
[424949031,1781326238000,-1024.56305108,0.000119,2]
[424949033,1781326238000,-500.0,0.0001198,2]
[424949035,1781326238000,-300.0,0.0001198,2]
[424949034,1781326238000,-300.0,0.0001198,2]
[424949036,1781326238000,-300.0,0.0001198,2]
[424949029,1781326238000,-211.83062856,0.000119,2]
[424949038,1781326238000,-300.0,0.0001198,2]
[424949039,1781326238000,-250.0,0.0001198,2]
[424949040,1781326238000,-2000.0,0.0001198,2]
[424949041,1781326238000,-523682.23011712,0.00011981,2]
[424949043,1781326238000,-1264.66078717,0.00011981,2]
[424949042,1781326238000,-4888.71828143,0.00011981,2]
[424949044,1781326238000,-2991.0,0.00011981,2]
[424949010,1781326238000,-500.0,0.00011123,2]
[424949037,1781326238000,-300.0,0.0001198,2]
[424949027,1781326238000,-326.53145953,0.000119,2]
[424949045,1781326238000,-452.04785907,0.00011981,2]
[424949025,1781326238000,-1117.27818641,0.000119,2]
[424949026,1781326238000,-800.0,0.000119,4]
[424949011,1781326238000,-166.66,0.00011178,2]
[424949012,1781326238000,-4776.04258988,0.00011181,2]
[424949016,1781326238000,-5215.12172216,0.00011391,2]
[424949019,1781326238000,-200.0,0.000116,4]
[424949013,1781326238000,-500.0,0.00011233,2]
[424949018,1781326238000,-166.66,0.00011507,2]
[424949017,1781326238000,-166.66,0.00011397,2]
[424948999,1781326238000,-500.0,0.00010958,5]
[424949014,1781326238000,-166.66,0.00011288,2]
[424949015,1781326238000,-2000.0,0.00011322,2]
[424949021,1781326238000,-600.0,0.000118,4]
[424949022,1781326238000,-839.41110309,0.000118,2]
[424949020,1781326238000,-400.0,0.000117,4]
[424949024,1781326238000,-154.70902674,0.000119,2]
[424949023,1781326238000,-360.54,0.0001187,2]
[424949028,1781326238000,-1056.25942059,0.000119,2]
[424949046,1781326239000,-31203.12323124,0.00011981,2]
[424949047,1781326239000,-1498.0344358,0.00011981,2]
[424949048,1781326239000,-3153.88746324,0.00011981,2]
[424949051,1781326239000,-336.22096291,0.00011981,2]
[424949050,1781326239000,-564.0886184,0.00011981,2]
[424949049,1781326239000,-554.70878623,0.00011981,2]
[424949053,1781326239000,-1358.36788851,0.00011981,2]
[424949052,1781326239000,-1094.0,0.00011981,2]
[424949098,1781326240000,-66478.63864155,0.00011981,2]
[424949100,1781326240000,-1191.12921498,0.00011981,2]
[424949097,1781326240000,-14461.37476591,0.00011981,2]
[424949099,1781326240000,-475.77767469,0.00011971,2]
[424949101,1781326240000,-549.28254945,0.00011981,2]
[424949102,1781326240000,-1032.08000892,0.00011981,2]
[424949103,1781326240000,-3302.56959814,0.00011981,2]
[424949105,1781326241000,-0.54995943,0.00011981,2]
[424949114,1781326243000,-1.54091337,0.00011981,2]
[424949112,1781326243000,-1045.86151698,0.00011981,2]
[424949113,1781326243000,-712.01545402,0.00011981,2]
[424949111,1781326243000,-2074.89849894,0.00011981,2]
[424949120,1781326244000,-184654.67167281,0.00011981,2]
[424949121,1781326244000,-2646.9517478,0.00011981,2]
[424949122,1781326244000,-2061.87627185,0.00011981,2]
[424949119,1781326244000,-3074.88970174,0.00011981,2]
[424949126,1781326245000,-1791.28065517,0.00011981,2]
[424949132,1781326246000,-874.45115733,0.00011981,2]
[424949134,1781326246000,-548.15193719,0.00011981,2]
[424949133,1781326246000,-765.56801084,0.00011981,2]
[424949131,1781326246000,-4490.89423256,0.00011981,2]
[424949130,1781326246000,-7298.38962212,0.00011981,2]
[424949128,1781326246000,-932.0,0.00011981,2]
[424949129,1781326246000,-824.63,0.00011981,2]
[424949127,1781326246000,-793.32576455,0.00011981,2]
[424949135,1781326246000,-97.04904727,0.00011981,2]
[424949138,1781326365000,-425.70379223,7.071e-05,2]
[424949139,1781326418000,-500.0,6.966e-05,2]
[424949140,1781326471000,-349.99719996,7.019e-05,2]
[424949143,1781326517000,-296.14666141,7.069e-05,2]
[424949144,1781326570000,-500.0,7.069e-05,2]
[424949145,1781326623000,-252.73892402,7.068e-05,2]
[424949152,1781326677000,200.0,8.069e-05,7]
[424949151,1781326677000,-177.283235,7.068e-05,2]
[424949153,1781326730000,-207.30266298,7.068e-05,2]
[424949158,1781326783000,-176.91724682,7.067e-05,2]
[424949159,1781326838000,-500.0,7.067e-05,2]
[424949172,1781327161000,-150.0,7.068e-05,2]
[424949173,1781327216000,-160.0,7.084e-05,2]
[424949179,1781327268000,-264.14074823,7.997e-05,2]
[424949178,1781327268000,-250.0,7.775e-05,2]
[424949176,1781327268000,-216.029201,7.099e-05,2]
[424949177,1781327268000,-160.0,7.099e-05,2]
[424949180,1781327322000,-235.85925177,7.997e-05,2]
[424949184,1781327375000,-566.215373,7.996e-05,2]
[424949186,1781327420000,-566.215373,7.996e-05,2]
[424949210,1781327432000,-389.01559595,7.898e-05,2]
[424949211,1781327432000,-944.41582422,7.898e-05,2]
[424949209,1781327432000,-65.22016916,7.898e-05,2]
[424949214,1781327432000,-1501.26728008,7.898e-05,2]
[424949213,1781327432000,-32237.3452161,7.898e-05,2]
[424949215,1781327432000,-3303.26254484,7.898e-05,2]
[424949216,1781327432000,-89604.28178729,7.898e-05,2]
[424949212,1781327432000,-231747.26237182,7.898e-05,2]
[424949217,1781327433000,-907.13116191,7.898e-05,2]
[424949238,1781327438000,-1920.88549741,7.898e-05,2]
[424949272,1781327438000,-74.90452758,7.898e-05,2]
[424949240,1781327438000,-4934.61870003,7.898e-05,2]
[424949239,1781327438000,-736.66604106,7.898e-05,2]
[424949342,1781327440000,-994.58,9.749e-05,2]
[424949346,1781327440000,-500.0,9.829e-05,2]
[424949340,1781327440000,-200.0,9.559e-05,2]
[424949330,1781327440000,-300.0,8.797e-05,2]
[424949341,1781327440000,-33277.9515,9.611e-05,2]
[424949339,1781327440000,-8056.14,8.797e-05,2]
[424949338,1781327440000,-150.99,8.797e-05,2]
[424949337,1781327440000,-4581.29,8.797e-05,2]
[424949336,1781327440000,-171.67852498,8.797e-05,2]
[424949335,1781327440000,-471.53445998,8.797e-05,2]
[424949334,1781327440000,-500.0,8.797e-05,2]
[424949320,1781327440000,-1256888.56398255,7.898e-05,2]
[424949328,1781327440000,-372.24104356,8.504e-05,2]
[424949329,1781327440000,-300.0,8.797e-05,2]
[424949331,1781327440000,-300.0,8.797e-05,2]
[424949327,1781327440000,-500.0,8.493e-05,2]
[424949326,1781327440000,-200.0,8.492e-05,2]
[424949323,1781327440000,-160.0,7.996e-05,2]
[424949324,1781327440000,-8055.5090362,8e-05,2]
[424949345,1781327440000,-500.0,9.829e-05,2]
[424949325,1781327440000,-500.0,8.219e-05,2]
[424949321,1781327440000,-186.47678224,7.996e-05,2]
[424949333,1781327440000,-319.68685379,8.797e-05,2]
[424949343,1781327440000,-5348.93,9.761e-05,2]
[424949322,1781327440000,-216.029201,7.996e-05,2]
[424949347,1781327440000,-500.0,9.829e-05,2]
[424949344,1781327440000,-500.0,9.829e-05,2]
[424949375,1781327440000,-150.0,0.00010959,2]
[424949374,1781327440000,-306.3,0.00010936,2]
[424949373,1781327440000,-4100.0,0.000109,3]
[424949372,1781327440000,-306.3,0.00010898,2]
[424949370,1781327440000,-507.05107868,0.00010841,2]
[424949371,1781327440000,-306.3,0.00010856,2]
[424949369,1781327440000,-500.0,0.00010841,2]
[424949365,1781327440000,-1300.0,0.000107,3]
[424949366,1781327440000,-306.3,0.00010752,2]
[424949367,1781327440000,-2700.0,0.000108,3]
[424949368,1781327440000,-306.3,0.00010809,2]
[424949332,1781327440000,-300.0,8.797e-05,2]
[424949364,1781327440000,-306.3,0.00010679,2]
[424949348,1781327440000,-187.5331921,9.829e-05,2]
[424949363,1781327440000,-306.3,0.00010502,2]
[424949358,1781327440000,-811.4,0.000101,2]
[424949359,1781327440000,-170.48,0.00010103,2]
[424949360,1781327440000,-153.57284252,0.00010256,2]
[424949350,1781327440000,-1803.23,9.9e-05,2]
[424949357,1781327440000,-317.18511646,0.0001,2]
[424949354,1781327440000,-18016.40785762,0.0001,2]
[424949361,1781327440000,-86945.792537,0.000103,2]
[424949362,1781327440000,-500.0,0.00010356,2]
[424949352,1781327440000,-1346.32,9.999e-05,2]
[424949388,1781327441000,-1803.23,0.00011137,2]
[424949397,1781327441000,-306.3,0.00011274,2]
[424949392,1781327441000,-1241.27013444,0.00011181,2]
[424949395,1781327441000,-306.3,0.00011232,2]
[424949391,1781327441000,-1013.32078694,0.0001118,2]
[424949389,1781327441000,-306.3,0.0001114,2]
[424949390,1781327441000,-306.3,0.00011164,2]
[424949385,1781327441000,-2940.01292717,0.00011099,2]
[424949381,1781327441000,-306.3,0.00011062,2]
[424949387,1781327441000,-306.3,0.00011115,2]